bitfinex-derivatives/quotes_SOLF0:USTF0_20220110
["timestamp","ask_amount","ask_price","bid_price","bid_amount"]
[1641809692137,3.99904705,141.68,141.62,10.10408726]
[1641809692538,3.99904705,141.68,141.63,2.39608726]
[1641809693538,3.99904705,141.68,141.63,9.45200541]
[1641809693740,3.99904705,141.68,141.64,1.764]
[1641809693940,3.99904705,141.68,141.66,7.05442489]
[1641809694140,3.99904705,141.69,141.66,14.34242489]
[1641809694340,3.99904705,141.69,141.66,16.10642489]
[1641809694540,3.99904705,141.69,141.67,2.39608726]
[1641809699746,3.99904705,141.69,141.62,2.39608726]
[1641809699946,7.99904705,141.69,141.62,2.39608726]
[1641809700447,3.99904705,141.69,141.62,2.39608726]
[1641809700846,7.99904705,141.69,141.62,2.39608726]
[1641809701046,3.99904705,141.69,141.62,2.39608726]
[1641809701445,3.99904705,141.68,141.62,2.39608726]
[1641809701845,3.99904705,141.69,141.62,2.39608726]
[1641809702045,3.99904705,141.69,141.62,10.25208726]
[1641809702848,3.99904705,141.69,141.63,2.39608726]
[1641809703246,7.99904705,141.69,141.63,2.39608726]
[1641809703447,4.0,141.68,141.63,2.39608726]
[1641809703847,4.0,141.64,141.62,2.39608726]
[1641809704048,9.958,141.64,141.6,14.86635347]
[1641809705551,3.99912411,141.63,141.61,1.89299052]
[1641809706249,4.0,141.62,141.61,1.89299052]
[1641809706449,3.99912411,141.63,141.61,1.89299052]
[1641809709552,7.99912411,141.63,141.61,1.89299052]
[1641809710153,3.99912411,141.62,141.61,1.89299052]
[1641809712857,13.64804632,141.62,141.55,18.52814985]
[1641809713055,13.64804632,141.62,141.55,16.76414985]
[1641809713056,4.0,141.6,141.55,16.76414985]
[1641809713657,4.0,141.6,141.55,9.45749318]
[1641809713859,4.0,141.6,141.55,2.3975899]
[1641809714059,3.99998684,141.59,141.56,1.51524743]
[1641809715359,7.99998684,141.59,141.56,1.51524743]
[1641809715860,3.99998684,141.58,141.56,1.51524743]
[1641809716259,3.99998684,141.59,141.56,1.51524743]
[1641809716859,7.99998684,141.6,141.56,1.51524743]
[1641809717060,4.0,141.59,141.56,1.51524743]
[1641809717259,7.99998684,141.59,141.56,1.51524743]
[1641809717460,3.99998684,141.59,141.56,1.51524743]
[1641809717660,69.7556,141.63,141.56,5.51524743]
[1641809717860,69.7556,141.63,141.57,1.764]
[1641809718261,6.0,141.64,141.57,1.764]
[1641809718461,6.0,141.64,141.58,1.51524743]
[1641809718860,4.0,141.62,141.57,1.51524743]
[1641809719060,4.0,141.61,141.57,1.51524743]
[1641809719660,4.0,141.62,141.56,1.51524743]
[1641809719861,9.64861149,141.63,141.56,9.90624743]
[1641809720461,6.0,141.64,141.56,9.90624743]
[1641809720661,6.0,141.64,141.57,1.51524743]
[1641809720861,4.0,141.63,141.57,1.51524743]
[1641809724965,6.0,141.64,141.57,1.51524743]
[1641809725569,2.0,141.64,141.57,1.51524743]
[1641809725969,6.0,141.64,141.57,1.51524743]
[1641809727068,2.0,141.64,141.57,1.51524743]
[1641809727268,6.0,141.64,141.57,1.51524743]
[1641809728170,4.0,141.63,141.57,1.51524743]
[1641809728370,4.0,141.62,141.57,1.51524743]
[1641809728570,9.64898924,141.62,141.57,1.51524743]
[1641809728971,9.64898924,141.62,141.56,1.51524743]
[1641809729571,5.64898924,141.62,141.56,1.51524743]
[1641809730171,5.64898924,141.62,141.57,2.39985653]
[1641809730471,2.0,141.64,141.57,11.75585653]
[1641809730872,2.0,141.64,141.59,4.0]
[1641809731171,2.0,141.64,141.59,1.764]
[1641809731373,2.0,141.64,141.6,1.51524743]
[1641809731573,2.0,141.64,141.6,9.96024743]
[1641809731772,2.0,141.64,141.6,12.36010396]
[1641809732172,2.0,141.64,141.61,1.51524743]
[1641809732773,2.0,141.64,141.61,3.91510396]
[1641809733172,2.53375391,141.63,141.61,3.91510396]
[1641809733374,2.53375391,141.63,141.62,8.82041605]
[1641809733574,2.0,141.64,141.62,12.73552001]
[1641809733974,2.0,141.64,141.62,11.22027258]
[1641809734375,2.0,141.64,141.63,4.18735409]
[1641809736478,5.99866438,141.64,141.63,4.18735409]
[1641809737780,2.0,141.64,141.63,4.18735409]
[1641809737981,69.0378,141.7,141.63,4.18735409]
[1641809738182,69.0378,141.7,141.63,5.95135409]
[1641809738585,3.99784745,141.69,141.64,1.78749756]
[1641809740489,7.99784745,141.69,141.64,1.78749756]
[1641809741088,3.99784745,141.68,141.64,1.78749756]
[1641809741689,7.99784745,141.68,141.64,1.78749756]
[1641809741894,3.99784745,141.68,141.64,1.78749756]
[1641809742090,0.21250244,141.64,141.63,2.39985653]
[1641809742292,0.21250244,141.64,141.63,4.16385653]
[1641809742691,67.0379,141.7,141.63,4.16385653]
[1641809742891,67.0379,141.7,141.63,9.98385653]
[1641809743091,66.8253,141.7,141.63,9.98385653]
[1641809744193,3.99761809,141.69,141.64,1.80163088]
[1641809746595,5.99761809,141.69,141.64,1.80163088]
[1641809747098,3.99761809,141.68,141.64,1.80163088]
[1641809749200,2.0,141.69,141.64,1.80163088]
[1641809749399,2.0,141.69,141.65,1.764]
[1641809749601,2.0,141.69,141.65,8.81867372]
[1641809750199,2.0,141.69,141.66,1.80163088]
[1641809750399,2.0,141.69,141.66,8.07063088]
[1641809750899,2.0,141.69,141.67,1.80163088]
[1641809751300,3.99751194,141.68,141.67,1.80163088]
[1641809751700,3.99751194,141.68,141.66,1.80163088]
[1641809752203,3.99751194,141.68,141.65,1.80163088]
[1641809753500,2.0,141.69,141.66,1.764]
[1641809753701,2.0,141.69,141.66,8.144]
[1641809754101,2.0,141.69,141.68,4.0]
[1641809754301,4.0,141.78,141.67,7.56563088]
[1641809754503,150.73878865,141.77,141.68,7.05318098]
[1641809754802,1.9962433,141.76,141.68,8.85481186]
[1641809755201,1.9962433,141.76,141.68,7.05318098]
[1641809756001,1.9962433,141.76,141.69,2.39013064]
[1641809756201,4.0,141.73,141.69,12.44457232]
[1641809756401,4.0,141.75,141.69,12.44457232]
[1641809756601,1.9962433,141.72,141.7,2.17544168]
[1641809757003,1.9962433,141.74,141.7,2.17544168]
[1641809757203,5.9962433,141.74,141.7,2.17544168]
[1641809757405,1.9962433,141.74,141.7,2.17544168]
[1641809757605,1.9962433,141.73,141.7,2.17544168]
[1641809758105,4.0,141.75,141.66,2.17544168]
[1641809758106,1.9962433,141.74,141.66,2.17544168]
[1641809758508,1.9962433,141.72,141.71,2.17544168]
[1641809758906,1.9962433,141.73,141.67,2.17544168]
[1641809759306,1.9962433,141.74,141.66,2.17544168]
[1641809759507,1.9962433,141.74,141.67,1.764]
[1641809760009,1.9962433,141.74,141.68,2.17544168]
[1641809760207,5.9962433,141.74,141.68,2.17544168]
[1641809761010,1.9962433,141.73,141.68,2.17544168]
[1641809761709,5.9962433,141.73,141.67,2.17544168]
[1641809761909,1.9962433,141.73,141.67,2.17544168]
[1641809762111,1.9962433,141.72,141.67,2.17544168]
[1641809762512,1.9962433,141.74,141.67,2.17544168]
[1641809763511,1.9962433,141.74,141.67,6.17544168]
[1641809763712,1.9962433,141.74,141.68,1.764]
[1641809764013,3.9962433,141.75,141.68,3.93944168]
[1641809764216,3.9962433,141.75,141.68,2.17544168]
[1641809764412,2.0,141.75,141.69,2.17544168]
[1641809764616,2.0,141.75,141.69,11.17844168]
[1641809764813,1.9962433,141.74,141.69,9.003]
[1641809765313,2.0,141.75,141.7,2.17544168]
[1641809765613,1.9962433,141.74,141.7,2.17544168]
[1641809766013,2.0,141.75,141.7,2.17544168]
[1641809766213,2.0,141.75,141.7,3.93744168]
[1641809766414,1.9962433,141.74,141.7,3.93744168]
[1641809766917,2.0,141.75,141.71,2.17544168]
[1641809767513,5.9962433,141.74,141.71,2.17544168]
[1641809767715,4.0,141.72,141.67,14.92143913]
[1641809767914,5.9962433,141.74,141.67,14.92143913]
[1641809768113,4.0,141.74,141.67,14.92143913]
[1641809768314,4.0,141.71,141.64,35.8312]
[1641809768514,4.0,141.71,141.63,26.48429566]
[1641809768914,4.0,141.71,141.63,11.56285653]
[1641809769115,3.99743255,141.7,141.64,2.15501778]
[1641809769915,3.99743255,141.71,141.64,2.15501778]
[1641809771218,3.99743255,141.71,141.65,1.764]
[1641809771817,3.99743255,141.71,141.66,2.15501778]
[1641809776217,7.99743255,141.71,141.66,2.15501778]
[1641809776819,3.99743255,141.7,141.66,2.15501778]
[1641809777819,3.99743255,141.71,141.66,2.15501778]
[1641809778019,3.99743255,141.69,141.67,2.39906565]
[1641809778619,3.99743255,141.71,141.68,2.15501778]
[1641809779021,3.99743255,141.71,141.69,2.15501778]
[1641809779520,3.99743255,141.71,141.65,12.92492257]
[1641809779920,3.99743255,141.71,141.66,1.72024822]
[1641809780120,3.99743255,141.71,141.66,4.11905537]
[1641809780723,3.99743255,141.71,141.67,1.72024822]
[1641809781621,3.99743255,141.71,141.66,1.72024822]
[1641809783424,7.99743255,141.71,141.66,1.72024822]
[1641809784125,3.99743255,141.7,141.64,1.72024822]
[1641809784927,7.99743255,141.71,141.64,1.72024822]
[1641809785324,7.99743255,141.7,141.64,1.72024822]
[1641809785525,3.99743255,141.7,141.64,1.72024822]
[1641809785726,3.99743255,141.69,141.64,1.72024822]
[1641809786428,3.99743255,141.7,141.64,1.72024822]
[1641809786827,13.64336148,141.7,141.64,1.72024822]
[1641809787228,3.99743255,141.69,141.64,1.72024822]
[1641809787428,9.64668101,141.68,141.64,1.72024822]
[1641809787829,4.0,141.67,141.64,1.72024822]
[1641809788030,7.99743255,141.67,141.64,1.72024822]
[1641809788431,3.99743255,141.66,141.64,1.72024822]
[1641809788830,3.99743255,141.67,141.64,1.72024822]
[1641809789029,3.99743255,141.67,141.64,10.34224822]
[1641809789832,3.99743255,141.67,141.65,1.72024822]
[1641809790231,7.99743255,141.69,141.65,1.72024822]
[1641809790431,3.99743255,141.69,141.65,1.72024822]
[1641809790632,9.64600291,141.7,141.65,1.72024822]
[1641809790633,3.99743255,141.68,141.65,1.72024822]
[1641809791133,3.99743255,141.69,141.64,1.72024822]
[1641809791333,3.99743255,141.69,141.64,9.13124822]
[1641809791533,3.99743255,141.67,141.66,1.72024822]
[1641809791935,3.99743255,141.68,141.65,1.72024822]
[1641809792336,3.99743255,141.67,141.66,1.72024822]
[1641809792734,3.99743255,141.69,141.64,1.72024822]
[1641809793136,3.99743255,141.69,141.64,9.44724822]
[1641809793337,7.99743255,141.69,141.64,9.44724822]
[1641809793535,4.0,141.69,141.65,1.72024822]
[1641809793737,7.99743255,141.7,141.65,1.72024822]
[1641809793937,3.99743255,141.7,141.65,1.72024822]
[1641809794139,3.99743255,141.68,141.65,1.72024822]
[1641809794539,3.99743255,141.7,141.65,1.72024822]
[1641809797341,7.99743255,141.7,141.65,1.72024822]
[1641809797540,3.99743255,141.7,141.65,1.72024822]
[1641809797742,6.58327453,141.69,141.65,1.72024822]
[1641809798241,3.99743255,141.68,141.65,1.72024822]
[1641809798944,3.99743255,141.69,141.65,1.72024822]
[1641809799346,4.0,141.67,141.65,1.72024822]
[1641809799946,3.99743255,141.66,141.65,1.72024822]
[1641809800345,7.99743255,141.66,141.64,1.72024822]
[1641809800746,3.99743255,141.65,141.64,1.72024822]
[1641809801148,3.99743255,141.66,141.64,1.72024822]
[1641809801548,3.99743255,141.67,141.64,1.72024822]
[1641809803451,3.99743255,141.67,141.63,1.72024822]
[1641809803950,3.99743255,141.67,141.63,4.12175599]
[1641809804452,3.99743255,141.67,141.64,1.72024822]
[1641809804652,3.99743255,141.67,141.64,8.73824822]
[1641809805253,3.99743255,141.67,141.65,1.72024822]
[1641809805654,7.99743255,141.67,141.65,1.72024822]
[1641809806054,13.64466074,141.67,141.62,14.94758621]
[1641809806256,3.99743255,141.66,141.63,1.72164838]
[1641809806455,4.0,141.65,141.63,1.72164838]
[1641809806855,7.99743255,141.66,141.63,1.72164838]
[1641809807156,3.99743255,141.64,141.63,1.72164838]
[1641809807557,3.99743255,141.66,141.63,1.72164838]
[1641809807758,3.99743255,141.66,141.63,9.73664838]
[1641809808559,3.99743255,141.66,141.64,1.72164838]
[1641809808959,3.99743255,141.66,141.65,1.72164838]
[1641809811966,3.99743255,141.68,141.65,1.72164838]
[1641809812366,3.99743255,141.68,141.66,1.72164838]
[1641809812567,3.99743255,141.68,141.66,10.17064838]
[1641809812767,3.99743255,141.68,141.66,8.449]
[1641809813268,3.99743255,141.68,141.67,1.72164838]
[1641809814270,14.94650488,141.69,141.67,1.72164838]
[1641809815972,10.21007952,141.71,141.68,4.0]
[1641809816174,5.64346608,141.76,141.69,1.764]
[1641809816377,64.2825,141.8,141.69,14.99158064]
[1641809816573,10.20391182,141.78,141.7,5.762]
[1641809816774,10.20391182,141.78,141.71,4.0]
[1641809816973,8.20391182,141.78,141.72,1.762]
[1641809817174,3.99626594,141.77,141.72,10.43464838]
[1641809817372,3.99626594,141.77,141.72,8.67264838]
[1641809817573,3.99626594,141.77,141.73,1.72164838]
[1641809818075,3.99626594,141.79,141.74,1.72164838]
[1641809818575,3.99626594,141.79,141.75,1.72164838]
[1641809819481,3.99626594,141.79,141.76,1.72164838]
[1641809819879,7.99626594,141.79,141.75,5.992]
[1641809820280,3.99626594,141.78,141.76,1.35738151]
[1641809820781,3.99626594,141.78,141.72,6.951]
[1641809821282,3.99626594,141.78,141.73,1.35746456]
[1641809822280,3.99626594,141.79,141.73,1.35746456]
[1641809825784,3.99626594,141.79,141.73,3.11946456]
[1641809826084,3.99626594,141.79,141.74,1.35746456]
[1641809827386,3.99626594,141.79,141.74,8.27546456]
[1641809827994,3.99626594,141.79,141.75,1.35746456]
[1641809828391,5.99626594,141.79,141.75,1.35746456]
[1641809828994,3.99626594,141.78,141.75,1.35746456]
[1641809844014,3.99626594,141.78,141.73,1.35746456]
[1641809844915,3.99626594,141.78,141.72,1.35746456]
[1641809845319,13.63884731,141.78,141.74,1.35746456]
[1641809845718,9.63884731,141.78,141.74,1.35746456]
[1641809845920,3.99626594,141.78,141.74,1.35746456]
[1641809846221,3.99626594,141.78,141.72,1.35746456]
[1641809846421,3.99626594,141.77,141.72,1.35746456]
[1641809847124,3.99626594,141.78,141.73,2.40192556]
[1641809847421,3.99626594,141.78,141.74,1.35746456]
[1641809848824,3.99626594,141.78,141.72,1.35746456]
[1641809850027,3.99626594,141.78,141.73,1.762]
[1641809850228,3.99626594,141.78,141.73,8.165]
[1641809850930,3.99626594,141.78,141.74,1.35746456]
[1641809857638,3.99626594,141.78,141.72,1.35746456]
[1641809858441,5.99626594,141.78,141.72,1.35746456]
[1641809859041,3.99626594,141.77,141.72,1.35746456]
[1641809862547,3.99626594,141.77,141.73,4.0]
[1641809862746,3.99626594,141.77,141.73,9.538]
[1641809863549,3.99626594,141.77,141.74,1.35746456]
[1641809865151,3.99626594,141.77,141.75,2.40220842]
[1641809865751,3.99626594,141.77,141.76,1.35746456]
[1641809866351,3.99626594,141.77,141.76,3.75967298]
[1641809867451,3.99626594,141.77,141.76,1.35746456]
[1641809868051,3.99626594,141.77,141.74,1.35746456]
[1641809868654,3.99626594,141.77,141.75,2.40261192]
[1641809869454,3.99626594,141.77,141.76,1.35746456]
[1641809870455,3.99626594,141.77,141.76,7.21946456]
[1641809870657,3.99626594,141.77,141.76,5.862]
[1641809871158,3.99626594,141.77,141.76,7.21946456]
[1641809883772,14.94838333,141.81,141.76,18.268668]
[1641809883973,14.94838333,141.81,141.8,4.0]
[1641809884173,54.81473208,141.84,141.8,4.0]
[1641809884372,52.81473208,141.84,141.8,7.344]
[1641809884572,52.81473208,141.84,141.8,9.106]
[1641809884772,52.81473208,141.84,141.8,11.344]
[1641809884972,52.81473208,141.84,141.81,3.91648872]
[1641809885474,52.81473208,141.84,141.82,2.15448872]
[1641809885672,37.86634875,141.84,141.82,2.15448872]
[1641809885873,70.4455,141.87,141.82,2.15448872]
[1641809886474,3.99347663,141.86,141.82,2.15448872]
[1641809887874,3.99347663,141.86,141.82,0.15448872]
[1641809888377,1.99347663,141.86,141.82,0.15448872]
[1641809888877,1.99347663,141.86,141.8,7.344]
[1641809889277,1.99347663,141.86,141.85,4.0]
[1641809889476,1.99347663,141.86,141.85,12.266]
[1641809889676,1.99347663,141.86,141.85,8.266]
[1641809889876,1.99347663,141.89,141.85,10.41987932]
[1641809890478,1.99347663,141.89,141.86,2.15387932]
[1641809891980,1.99347663,141.89,141.86,0.15387932]
[1641809892381,68.15887663,141.9,141.83,1.762]
[1641809893583,68.15887663,141.9,141.82,7.04647148]
[1641809893782,68.15887663,141.9,141.84,2.59245177]
[1641809894183,68.15887663,141.9,141.83,2.59245177]
[1641809895485,68.15887663,141.9,141.83,4.35445177]
[1641809895789,70.15887663,141.9,141.83,4.35445177]
[1641809896190,70.15887663,141.9,141.84,2.59245177]
[1641809897891,70.15887663,141.9,141.84,6.59245177]
[1641809898290,70.15887663,141.9,141.85,2.59245177]
[1641809898489,70.15887663,141.9,141.86,1.762]
[1641809898691,70.15887663,141.9,141.85,2.59245177]
[1641809898891,70.15887663,141.9,141.86,2.59245177]
[1641809899394,70.15887663,141.9,141.87,2.59245177]
[1641809899791,70.15887663,141.9,141.88,2.59245177]
[1641809900291,70.15887663,141.9,141.85,8.923]
[1641809900592,70.15887663,141.9,141.86,2.19205579]
[1641809901593,70.15887663,141.9,141.85,2.19205579]
[1641809901792,70.15887663,141.9,141.85,6.19205579]
[1641809902392,70.15887663,141.9,141.86,2.19205579]
[1641809902594,70.15887663,141.9,141.87,1.762]
[1641809903394,70.15887663,141.9,141.88,2.19205579]
[1641809903995,2.0,141.9,141.88,2.19205579]
[1641809906499,2.0,141.9,141.84,1.76]
[1641809906699,2.0,141.9,141.82,1.762]
[1641809906899,2.0,141.9,141.85,2.19232964]
[1641809907200,2.0,141.9,141.83,2.19232964]
[1641809907499,2.0,141.9,141.84,1.762]
[1641809907701,2.0,141.9,141.83,2.19232964]
[1641809910105,2.0,141.9,141.83,6.19232964]
[1641809910302,2.0,141.9,141.83,2.19232964]
[1641809910502,2.0,141.9,141.84,2.19232964]
[1641809910703,2.0,141.9,141.84,11.20532964]
[1641809911103,2.0,141.9,141.84,9.013]
[1641809911304,2.0,141.9,141.84,10.775]
[1641809911703,2.0,141.9,141.85,2.19232964]
[1641809912305,2.0,141.9,141.83,2.19232964]
[1641809912505,2.0,141.9,141.84,1.762]
[1641809913206,2.0,141.9,141.85,2.19232964]
[1641809913608,2.5792673,141.89,141.85,2.19232964]
[1641809914207,3.99322647,141.88,141.83,2.19232964]
[1641809914609,3.99322647,141.88,141.86,2.19232964]
[1641809915010,3.99322647,141.88,141.83,2.19232964]
[1641809919820,5.64017352,141.84,141.79,14.87855273]
[1641809920017,14.25317352,141.84,141.79,14.87855273]
[1641809921017,3.99502052,141.83,141.8,1.73372454]
[1641809922120,3.99502052,141.86,141.8,1.73372454]
[1641809922519,3.99502052,141.82,141.8,1.73372454]
[1641809922919,18.92811544,141.85,141.8,1.73372454]
[1641809923320,3.99502052,141.84,141.8,1.73372454]
[1641809924322,3.99502052,141.85,141.8,1.73372454]
[1641809924522,3.99502052,141.85,141.8,3.49572454]
[1641809924721,3.99502052,141.87,141.82,4.0]
[1641809924921,3.99502052,141.87,141.82,8.96]
[1641809925120,3.99502052,141.87,141.83,1.73372454]
[1641809925521,3.99502052,141.87,141.83,4.13092083]
[1641809926122,3.99502052,141.87,141.84,1.73372454]
[1641809926923,3.99502052,141.87,141.83,1.73372454]
[1641809927626,3.99502052,141.87,141.84,2.39699331]
[1641809928325,3.99502052,141.87,141.85,1.73372454]
[1641809929126,3.99502052,141.87,141.85,7.70872454]
[1641809929627,3.99502052,141.87,141.86,1.73372454]
[1641809933832,3.99502052,141.87,141.83,1.73372454]
[1641809939739,3.99502052,141.88,141.83,1.73372454]
[1641809940542,7.99502052,141.88,141.83,1.73372454]
[1641809940946,4.0,141.87,141.83,1.73372454]
[1641809941146,19.25622465,141.87,141.83,1.73372454]
[1641809941344,4.0,141.84,141.79,24.6333856]
[1641809941544,4.0,141.81,141.79,24.6333856]
[1641809941746,9.876,141.81,141.79,24.6333856]
[1641809942246,5.876,141.81,141.79,24.6333856]
[1641809942444,9.876,141.81,141.79,24.6333856]
[1641809942644,5.876,141.81,141.8,1.36943634]
[1641809942844,9.876,141.81,141.8,1.36943634]
[1641809943045,5.876,141.81,141.8,1.36943634]
[1641809943246,9.876,141.81,141.8,1.36943634]
[1641809943445,5.876,141.81,141.8,1.36943634]
[1641809943647,20.5677938,141.86,141.8,1.36943634]
[1641809944446,4.0,141.85,141.8,1.36943634]
[1641809945448,4.0,141.83,141.8,1.36943634]
[1641809945848,77.7885,141.85,141.8,1.36943634]
[1641809946549,71.5815,141.85,141.8,1.36943634]
[1641809948952,67.5815,141.85,141.8,1.36943634]
[1641809949352,2.0,141.86,141.8,1.36943634]
[1641809949552,2.0,141.86,141.81,1.762]
[1641809949752,2.0,141.86,141.81,9.339]
[1641809950154,2.0,141.86,141.82,1.36943634]
[1641809950355,6.0,141.86,141.82,1.36943634]
[1641809950556,4.0,141.85,141.82,1.36943634]
[1641809950957,4.0,141.85,141.8,1.36943634]
[1641809951258,4.0,141.85,141.83,1.36943634]
[1641809951657,14.195,141.86,141.8,1.36943634]
[1641809951957,2.0,141.86,141.8,1.36943634]
[1641809953658,2.0,141.86,141.81,2.39679761]
[1641809954259,2.0,141.86,141.82,1.36943634]
[1641809955060,2.0,141.86,141.82,8.13943634]
[1641809955561,2.0,141.86,141.83,1.36943634]
[1641809955759,6.0,141.86,141.83,1.36943634]
[1641809955959,2.0,141.86,141.83,1.36943634]
[1641809956360,2.0,141.86,141.8,1.36943634]
[1641809957163,2.0,141.86,141.81,2.39691709]
[1641809957663,2.0,141.86,141.82,1.36943634]
[1641809958063,3.99451817,141.85,141.82,1.36943634]
[1641809958865,3.99451817,141.85,141.81,1.36943634]
[1641809959067,3.99451817,141.85,141.82,1.762]
[1641809959867,3.99451817,141.85,141.83,1.36943634]
[1641809960668,3.99451817,141.85,141.81,1.36943634]
[1641809962375,3.99451817,141.85,141.8,1.36943634]
[1641809962570,3.99451817,141.85,141.8,3.13143634]
[1641809963173,3.99451817,141.85,141.81,1.36943634]
[1641809964472,3.99451817,141.85,141.81,10.65843634]
[1641809964873,3.99451817,141.85,141.82,1.36943634]
[1641809965074,3.99451817,141.85,141.82,3.13143634]
[1641809965272,2.0,141.86,141.82,3.13143634]
[1641809965473,2.0,141.86,141.82,10.17765956]
[1641809965875,2.0,141.86,141.83,1.36943634]
[1641809970181,3.99415395,141.85,141.83,1.36943634]
[1641809970481,10.76515395,141.85,141.83,1.36943634]
[1641809970684,10.76515395,141.85,141.81,1.36943634]
[1641809971085,3.99415395,141.84,141.81,1.36943634]
[1641809971483,3.99415395,141.84,141.8,1.36943634]
[1641809972084,3.99415395,141.85,141.8,1.36943634]
[1641809974886,7.99415395,141.85,141.8,1.36943634]
[1641809975485,3.99415395,141.84,141.8,1.36943634]
[1641809976787,3.99415395,141.84,141.81,2.400818]
[1641809977386,3.99415395,141.84,141.82,1.36943634]
[1641809977785,3.99415395,141.85,141.82,1.36943634]
[1641809978388,5.99415395,141.85,141.82,1.36943634]
[1641809978586,5.99415395,141.85,141.82,7.69343634]
[1641809979188,3.99415395,141.84,141.83,1.36943634]
[1641809979589,2.0,141.85,141.83,1.36943634]
[1641809979988,2.0,141.85,141.83,3.634e-05]
[1641809980187,2.0,141.85,141.81,2.400818]
[1641809980387,10.013,141.85,141.81,2.400818]
[1641809980787,14.013,141.85,141.81,2.400818]
[1641809981387,3.99501103,141.84,141.82,1.35594702]
[1641809991902,2.0,141.85,141.82,1.35594702]
[1641809992099,2.0,141.85,141.82,10.64294702]
[1641809992707,2.0,141.85,141.83,1.35594702]
[1641809993202,2.0,141.85,141.84,1.35594702]
[1641809993402,2.0,141.85,141.84,3.75658725]
[1641809993603,5.99407601,141.85,141.84,3.75658725]
[1641809994604,2.0,141.85,141.84,3.75658725]
[1641809997711,14.92570162,141.92,141.84,10.80206581]
[1641809997911,14.92570162,141.92,141.87,7.04374164]
[1641809998112,14.92570162,141.92,141.87,13.53774164]
[1641809998511,12.92570162,141.92,141.88,1.76]
[1641809998711,12.92570162,141.92,141.89,161.07422128]
[1641809999112,64.4997,141.95,141.9,1.35594702]
[1641809999319,64.4997,141.95,141.9,8.62894702]
[1641809999516,34.286,141.96,141.91,7.04200556]
[1641809999713,3.99186799,141.94,141.92,1.76]
[1641810000118,34.286,141.96,141.93,1.35594702]
[1641810000119,3.99186799,141.95,141.93,1.35594702]
[1641810000315,3.99186799,141.95,141.93,7.51794702]
[1641810000714,3.99186799,141.95,141.94,1.35594702]
[1641810000913,3.99186799,141.95,141.94,7.11594702]
[1641810001316,34.286,141.96,141.94,7.11594702]
[1641810001619,6.286,141.96,141.95,12.79927918]
[1641810001818,6.286,141.96,141.95,19.79069163]
[1641810002215,0.65151745,141.96,141.95,14.1552262]
[1641810002414,91.17382356,141.99,141.95,12.1552262]
[1641810002614,91.17382356,141.99,141.98,22.0]
[1641810002814,78.73382356,141.99,141.98,29.826]
[1641810003013,68.73382356,141.99,141.98,31.18194702]
[1641810003214,57.15382356,141.99,141.98,31.18194702]
[1641810003413,2.0,142.05,141.98,31.18194702]
[1641810003414,30.61018551,142.07,141.98,38.2175118]
[1641810003615,30.61018551,142.07,142.06,2.0]
[1641810003816,198.30095832,142.13,142.06,11.083]
[1641810004014,198.30095832,142.13,142.07,1.759]
[1641810004516,3.98766877,142.11,142.08,1.35594702]
[1641810004716,2.0,142.1,142.08,1.35594702]
[1641810004917,5.98766877,142.11,142.08,1.35594702]
[1641810005317,202.30095832,142.13,142.09,1.35594702]
[1641810005516,2.0,142.1,142.02,1.758]
[1641810005717,2.0,142.08,142.01,1.758]
[1641810006018,7.612,142.1,142.01,1.758]
[1641810006217,2.0,142.08,142.01,1.758]
[1641810006419,7.612,142.1,142.02,2.0]
[1641810006922,2.0,142.06,141.98,7.03556478]
[1641810007119,2.0,142.05,142.03,0.797742]
[1641810007319,8.677,142.06,142.03,0.797742]
[1641810007519,2.0,142.04,141.99,0.797742]
[1641810007731,2.0,142.04,142.0,1.76]
[1641810007921,0.0001,142.04,142.0,1.76]
[1641810008420,0.0001,142.04,142.01,0.797742]
[1641810009221,70.0749,142.09,142.01,0.797742]
[1641810009423,70.0749,142.09,142.0,0.797742]
[1641810009822,4.0,142.08,142.02,0.797742]
[1641810010023,4.0,142.07,142.02,0.797742]
[1641810010224,4.0,142.07,142.0,0.797742]
[1641810011125,4.0,142.06,142.0,0.797742]
[1641810011624,4.0,142.06,141.99,0.797742]
[1641810012028,4.0,142.04,141.98,0.797742]
[1641810012224,4.0,142.02,141.98,0.797742]
[1641810012627,70.3428,142.03,141.97,0.797742]
[1641810012826,70.3428,142.03,141.97,7.183742]
[1641810013027,70.3428,142.03,141.97,6.386]
[1641810013627,74.3428,142.03,141.98,0.797742]
[1641810014027,70.3428,142.03,141.98,0.797742]